[Event "46th GRE-chT Premier 2018"]
[Site "Rio Achaia"]
[Date "2018.07.12"]
[Round "4"]
[White "Paraskevas, Georgios"]
[Black "Spyropoulos, Nikolaos"]
[Result "0-1"]
[ECO "B03"]
[WhiteElo "1634"]
[BlackElo "2293"]
[Annotator "NA"]
[PlyCount "90"]
[EventDate "2018.07.10"]
[EventType "team-tourn"]
[EventCountry "GRE"]
[SourceTitle "playchess.com"]
[Source "ChessBase"]
[SourceQuality "1"]
[TimeControl "40/5400+30:1800+30"]

1. e4 {[%emt 0:00:00]} Nf6 {[%emt 0:00:00]} 2. e5 {[%emt 0:00:00]} Nd5 {[%emt 0:00:00]} 3. c4 {[%emt 0:00:00]} Nb6 {[%emt 0:00:00]} 4. d4 {[%emt 0:00:00]} d6 {[%emt 0:00:00]} 5. f4 {[%emt 0:00:00]} g6 {[%emt 0:00:00]} 6. Nc3 {[%emt 0:00:02]} Bg7 {[%emt 0:00:00]} 7. Be2 {[%emt 0:00:08]} Be6 {[%emt 0:01:25]} 8. b3 {[%emt 0:01:21]} dxe5 {[%emt 0:05:52]} 9. fxe5 {[%emt 0:00:03]} c5 {[%emt 0:01:08]} 10. Bf4 {[%emt 0:34:39]} cxd4 {[%emt 0:15:08]} 11. Nb5 {[%emt 0:00:43]} Nc6 {[%emt 0:00:37]} 12. Nf3 {[%emt 0:00:34]} Nd7 {[%emt 0:01:21]} 13. Nbxd4 {[%emt 0:29:46]} Ndxe5 {[%emt 0:08:29]} 14. Nxe6 {[%emt 0:01:02]} Nxf3+ {[%emt 0:02:20]} 15. Bxf3 {[%emt 0:02:52]} fxe6 {[%emt 0:01:13]} 16. Qxd8+ {[%emt 0:11:51]} Rxd8 {[%emt 0:00:07]} 17. Rd1 {[%emt 0:00:08]} O-O {[%emt 0:24:35]} 18. Rxd8 {[%emt 0:12:17]} Rxd8 {[%emt 0:00:21]} 19. Kf2 {[%emt 0:00:44]} Bd4+ {[%emt 0:10:38]} 20. Kg3 {[%emt 0:00:42]} Bc5 {[%emt 0:01:34]} 21. Rd1 {[%emt 0:00:30]} Rxd1 {[%emt 0:04:43]} 22. Bxd1 {[%emt 0:00:02]} Nb4 {[%emt 0:00:30]} 23. Bg4 {[%emt 0:01:43]} Kf7 {[%emt 0:00:27]} 24. Bf3 {[%emt 0:00:39]} b6 {[%emt 0:00:45]} 25. a4 {[%emt 0:00:25]} Bd6 {[%emt 0:04:13]} 26. Kg4 {[%emt 0:00:44]} Nd3 {[%emt 0:00:19]} 27. Bg3 {[%emt 0:01:02]} Bxg3 {[%emt 0:01:28]} 28. Kxg3 {[%emt 0:00:04]} Kf6 {[%emt 0:01:31]} 29. Bd1 {[%emt 0:00:47]} Ke5 {[%emt 0:00:11]} 30. Kf3 {[%emt 0:00:35]} Kd4 {[%emt 0:00:27]} 31. Be2 {[%emt 0:01:31]} e5 {[%emt 0:01:32]} 32. Bd1 {[%emt 0:00:17]} e4+ {[%emt 0:00:15]} 33. Ke2 {[%emt 0:00:28]} Nf4+ {[%emt 0:00:31]} 34. Kf1 {[%emt 0:00:38]} Ke3 {[%emt 0:01:58]} 35. g3 {[%emt 0:00:39]} Nd3 {[%emt 0:00:06]} 36. Bg4 {[%emt 0:00:20]} a5 {[%emt 0:00:16]} 37. h4 {[%emt 0:00:25]} Nc5 {[%emt 0:00:46]} 38. Ke1 {[%emt 0:00:46]} Nxb3 {[%emt 0:00:12]} 39. h5 {[%emt 0:00:30]} gxh5 {[%emt 0:00:07]} 40. Bxh5 {[%emt 0:00:00]} Nc5 {[%emt 0:00:00]} 41. Be8 {[%emt 0:03:34]} Nd3+ {[%emt 0:00:34]} 42. Kf1 {[%emt 0:00:29]} Kd2 {[%emt 0:00:15]} 43. Bh5 {[%emt 0:00:29]} e3 {[%emt 0:00:12]} 44. Be2 {[%emt 0:08:43]} Nc1 {[%emt 0:00:26]} 45. c5 {[%emt 0:00:07]} bxc5 {[%emt 0:00:05]} 0-1

[Event "46th GRE-chT Premier 2018"]
[Site "Rio Achaia"]
[Date "2018.07.12"]
[Round "4"]
[White "Grafakou, Sotiria-Aphrodite"]
[Black "Kokkota, Fotini"]
[Result "0-1"]
[ECO "D37"]
[WhiteElo "1617"]
[BlackElo "1615"]
[Annotator "NA"]
[PlyCount "54"]
[EventDate "2018.07.10"]
[EventType "team-tourn"]
[EventCountry "GRE"]
[SourceTitle "playchess.com"]
[Source "ChessBase"]
[SourceQuality "1"]
[TimeControl "40/5400+30:1800+30"]

1. d4 {[%emt 0:00:00]} d5 {[%emt 0:00:00]} 2. c4 {[%emt 0:00:00]} e6 {[%emt 0:00:00]} 3. Nc3 {[%emt 0:00:17]} Nf6 {[%emt 0:00:00]} 4. Nf3 {[%emt 0:00:14]} Be7 {[%emt 0:00:00]} 5. e3 {[%emt 0:00:52]} O-O {[%emt 0:00:45]} 6. Bd3 {[%emt 0:00:29]} dxc4 {[%emt 0:00:39]} 7. Bxc4 {[%emt 0:00:08]} a6 {[%emt 0:00:04]} 8. O-O {[%emt 0:00:28]} b5 {[%emt 0:01:23]} 9. Bd3 {[%emt 0:00:23]} c5 {[%emt 0:00:12]} 10. dxc5 {[%emt 0:06:14]} Bxc5 {[%emt 0:01:38]} 11. b3 {[%emt 0:03:35]} Bb7 {[%emt 0:01:45]} 12. Bb2 {[%emt 0:04:03]} Nbd7 {[%emt 0:08:11]} 13. Rc1 {[%emt 0:05:31]} Qb6 {[%emt 0:04:48]} 14. Ng5 {[%emt 0:08:01]} Bxe3 {[%emt 0:13:38]} 15. Nce4 {[%emt 0:37:02]} Nxe4 {[%emt 0:14:32]} 16. Bxe4 {[%emt 0:06:33]} Bxg5 {[%emt 0:04:09]} 17. Bd4 {[%emt 0:03:03]} Qd6 {[%emt 0:03:02]} 18. Bxb7 {[%emt 0:03:09]} Bxc1 {[%emt 0:00:07]} 19. Bxa8 {[%emt 0:00:14]} Rxa8 {[%emt 0:00:15]} 20. Qxc1 {[%emt 0:00:21]} Qxd4 {[%emt 0:00:14]} 21. Rd1 {[%emt 0:00:49]} Qa7 {[%emt 0:00:10]} 22. Qc6 {[%emt 0:00:44]} Nf8 {[%emt 0:00:27]} 23. h3 {[%emt 0:00:49]} h6 {[%emt 0:00:09]} 24. Rd2 {[%emt 0:00:27]} Rb8 {[%emt 0:07:40]} 25. Rd1 {[%emt 0:01:15]} Qb6 {[%emt 0:00:27]} 26. Qe4 {[%emt 0:00:16]} Qc5 {[%emt 0:01:12]} 27. Qd3 {[%emt 0:00:21]} Ng6 {[%emt 0:01:10]} 0-1

[Event "46th GRE-chT Premier 2018"]
[Site "Rio Achaia"]
[Date "2018.07.12"]
[Round "4"]
[White "Chatziioannidi, Filippa"]
[Black "Kouta, Antonia"]
[Result "1/2-1/2"]
[ECO "B90"]
[WhiteElo "1592"]
[BlackElo "1703"]
[Annotator "NA"]
[PlyCount "103"]
[EventDate "2018.07.10"]
[EventType "team-tourn"]
[EventCountry "GRE"]
[SourceTitle "playchess.com"]
[Source "ChessBase"]
[SourceQuality "1"]
[TimeControl "40/5400+30:1800+30"]

1. e4 {[%emt 0:00:00]} c5 {[%emt 0:00:00]} 2. Nf3 {[%emt 0:00:00]} d6 {[%emt 0:00:00]} 3. d4 {[%emt 0:00:00]} cxd4 {[%emt 0:00:00]} 4. Nxd4 {[%emt 0:00:00]} Nf6 {[%emt 0:00:00]} 5. Nc3 {[%emt 0:00:00]} a6 {[%emt 0:00:11]} 6. Be3 {[%emt 0:00:00]} b5 {[%emt 0:01:59]} 7. f3 {[%emt 0:00:07]} Bb7 {[%emt 0:01:02]} 8. Qd2 {[%emt 0:00:14]} e6 {[%emt 0:04:45]} 9. g4 {[%emt 0:00:34]} h6 {[%emt 0:07:04]} 10. h4 {[%emt 0:00:18]} Nbd7 {[%emt 0:02:24]} 11. O-O-O {[%emt 0:08:58]} b4 {[%emt 0:10:26]} 12. Nce2 {[%emt 0:17:51]} Qc7 {[%emt 0:07:12]} 13. Kb1 {[%emt 0:06:27]} Ne5 {[%emt 0:16:11]} 14. Qxb4 {[%emt 0:14:13]} Ned7 {[%emt 0:17:08]} 15. Qc3 {[%emt 0:04:33]} Rc8 {[%emt 0:07:16]} 16. Qxc7 {[%emt 0:03:31]} Rxc7 {[%emt 0:00:01]} 17. Nc3 {[%emt 0:00:40]} d5 {[%emt 0:03:57]} 18. exd5 {[%emt 0:00:53]} Nxd5 {[%emt 0:01:47]} 19. Nxd5 {[%emt 0:01:43]} Bxd5 {[%emt 0:00:22]} 20. Bxa6 {[%emt 0:05:57]} Bxa2+ {[%emt 0:05:31]} 21. Kxa2 {[%emt 0:02:41]} Ra7 {[%emt 0:00:04]} 22. b3 {[%emt 0:01:39]} Rxa6+ {[%emt 0:01:42]} 23. Kb2 {[%emt 0:00:25]} Ba3+ {[%emt 0:02:23]} 24. Kc3 {[%emt 0:00:07]} O-O {[%emt 0:00:53]} 25. Kd2 {[%emt 0:04:26]} Bb4+ {[%emt 0:03:38]} 26. Ke2 {[%emt 0:02:07]} Ra2 {[%emt 0:03:10]} 27. Bd2 {[%emt 0:04:30]} Bc5 {[%emt 0:01:01]} 28. c3 {[%emt 0:01:16]} Rfa8 {[%emt 0:00:33]} 29. Rb1 {[%emt 0:02:13]} Bb6 {[%emt 0:01:25]} 30. b4 {[%emt 0:01:53]} Ne5 {[%emt 0:00:35]} 31. Nb3 {[%emt 0:02:09]} Nc4 {[%emt 0:00:47]} 32. Ra1 {[%emt 0:01:11]} Kf8 {[%emt 0:01:27]} 33. Kd3 {[%emt 0:03:41]} Ne5+ {[%emt 0:00:38]} 34. Ke4 {[%emt 0:00:54]} Nc4 {[%emt 0:00:09]} 35. Bf4 {[%emt 0:01:49]} R8a3 {[%emt 0:00:48]} 36. Rxa2 {[%emt 0:01:57]} Rxa2 {[%emt 0:00:02]} 37. Nc5 {[%emt 0:00:50]} Ke7 {[%emt 0:00:49]} 38. Rd1 {[%emt 0:00:53]} Ra7 {[%emt 0:00:35]} 39. Rd4 {[%emt 0:02:33]} Nb2 {[%emt 0:00:45]} 40. Bd6+ {[%emt 0:00:00]} Ke8 {[%emt 0:00:00]} 41. Bg3 {[%emt 0:11:31]} Ra1 {[%emt 0:05:18]} 42. Rd2 {[%emt 0:07:01]} Nc4 {[%emt 0:03:25]} 43. Rc2 {[%emt 0:00:49]} Na3 {[%emt 0:05:27]} 44. Re2 {[%emt 0:03:06]} Nb5 {[%emt 0:04:32]} 45. c4 {[%emt 0:04:16]} Nc3+ {[%emt 0:00:13]} 46. Kd3 {[%emt 0:00:21]} Nxe2 {[%emt 0:00:18]} 47. Kxe2 {[%emt 0:00:05]} Ra3 {[%emt 0:02:55]} 48. Nd3 {[%emt 0:00:42]} f6 {[%emt 0:03:03]} 49. c5 {[%emt 0:00:34]} Ba7 {[%emt 0:00:42]} 50. Bc7 {[%emt 0:00:29]} Kd7 {[%emt 0:00:26]} 51. Bd6 {[%emt 0:01:39]} g6 {[%emt 0:02:40]} 52. Kd2 {[%emt 0:01:29]} 1/2-1/2

[Event "46th GRE-chT Premier 2018"]
[Site "Rio Achaia"]
[Date "2018.07.12"]
[Round "4"]
[White "Serpetsidaki, Eva"]
[Black "Mastrakouli, Evagelia"]
[Result "0-1"]
[ECO "B26"]
[WhiteElo "1591"]
[BlackElo "1779"]
[Annotator "NA"]
[PlyCount "88"]
[EventDate "2018.07.10"]
[EventType "team-tourn"]
[EventCountry "GRE"]
[SourceTitle "playchess.com"]
[Source "ChessBase"]
[SourceQuality "1"]
[TimeControl "40/5400+30:1800+30"]

1. e4 {[%emt 0:00:00]} c5 {[%emt 0:00:00]} 2. Nc3 {[%emt 0:00:00]} Nc6 {[%emt 0:00:30]} 3. g3 {[%emt 0:00:00]} g6 {[%emt 0:02:03]} 4. Bg2 {[%emt 0:00:00]} Bg7 {[%emt 0:00:04]} 5. d3 {[%emt 0:00:00]} d6 {[%emt 0:01:01]} 6. Be3 {[%emt 0:00:05]} Nf6 {[%emt 0:03:07]} 7. h3 {[%emt 0:00:30]} Qa5 {[%emt 0:06:41]} 8. Nge2 {[%emt 0:00:58]} Rb8 {[%emt 0:15:35]} 9. O-O {[%emt 0:00:10]} b5 {[%emt 0:11:20]} 10. Qd2 {[%emt 0:00:09]} O-O {[%emt 0:16:04]} 11. f4 {[%emt 0:00:12]} Bb7 {[%emt 0:03:57]} 12. g4 {[%emt 0:01:18]} e6 {[%emt 0:07:26]} 13. f5 {[%emt 0:04:25]} b4 {[%emt 0:01:19]} 14. Nd1 {[%emt 0:05:34]} Nd7 {[%emt 0:02:59]} 15. Bh6 {[%emt 0:01:14]} Qd8 {[%emt 0:04:35]} 16. Bxg7 {[%emt 0:06:02]} Kxg7 {[%emt 0:00:04]} 17. Ng3 {[%emt 0:01:01]} Qh4 {[%emt 0:03:37]} 18. Qf4 {[%emt 0:09:39]} e5 {[%emt 0:00:39]} 19. Qf2 {[%emt 0:00:06]} Qg5 {[%emt 0:02:13]} 20. Ne3 {[%emt 0:00:35]} Kh8 {[%emt 0:01:29]} 21. f6 {[%emt 0:02:24]} Rbe8 {[%emt 0:02:22]} 22. Ne2 {[%emt 0:00:58]} Re6 {[%emt 0:01:06]} 23. Nd5 {[%emt 0:00:05]} Nd4 {[%emt 0:01:11]} 24. Nxd4 {[%emt 0:06:31]} exd4 {[%emt 0:00:04]} 25. Qg3 {[%emt 0:08:08]} Bxd5 {[%emt 0:01:07]} 26. exd5 {[%emt 0:00:31]} Rxf6 {[%emt 0:00:20]} 27. Rxf6 {[%emt 0:05:35]} Qxf6 {[%emt 0:00:03]} 28. a3 {[%emt 0:00:09]} a5 {[%emt 0:02:14]} 29. axb4 {[%emt 0:00:07]} axb4 {[%emt 0:00:05]} 30. Ra6 {[%emt 0:00:10]} Ne5 {[%emt 0:00:10]} 31. Qf2 {[%emt 0:00:21]} Qxf2+ {[%emt 0:01:27]} 32. Kxf2 {[%emt 0:00:16]} b3 {[%emt 0:04:40]} 33. cxb3 {[%emt 0:03:04]} Nxd3+ {[%emt 0:00:06]} 34. Ke2 {[%emt 0:00:04]} Nf4+ {[%emt 0:02:30]} 35. Kf2 {[%emt 0:00:06]} Rd8 {[%emt 0:00:23]} 36. Be4 {[%emt 0:00:16]} Nxh3+ {[%emt 0:00:39]} 37. Kg3 {[%emt 0:00:30]} Ng5 {[%emt 0:00:07]} 38. Bd3 {[%emt 0:00:14]} Kg7 {[%emt 0:00:39]} 39. Kf4 {[%emt 0:00:50]} h6 {[%emt 0:01:16]} 40. Bc4 {[%emt 0:00:00]} Kf6 {[%emt 0:00:00]} 41. Bd3 {[%emt 0:00:43]} Nh7 {[%emt 0:09:30]} 42. Bc4 {[%emt 0:00:15]} Nf8 {[%emt 0:00:26]} 43. Bd3 {[%emt 0:00:09]} g5+ {[%emt 0:00:49]} 44. Ke4 {[%emt 0:00:12]} Re8+ {[%emt 0:00:32]} 0-1

[Event "46th GRE-chT Premier 2018"]
[Site "Rio Achaia"]
[Date "2018.07.12"]
[Round "4"]
[White "Galanakis, Nikolaos"]
[Black "Sourgkounis, Angelos"]
[Result "0-1"]
[ECO "B03"]
[WhiteElo "1579"]
[BlackElo "1976"]
[Annotator "NA"]
[PlyCount "147"]
[EventDate "2018.07.10"]
[EventType "team-tourn"]
[EventCountry "GRE"]
[SourceTitle "playchess.com"]
[Source "ChessBase"]
[SourceQuality "1"]
[TimeControl "40/5400+30:1800+30"]

1. e4 {[%emt 0:00:00]} Nf6 {[%emt 0:09:11]} 2. e5 {[%emt 0:00:00]} Nd5 {[%emt 0:00:04]} 3. d4 {[%emt 0:00:00]} d6 {[%emt 0:00:03]} 4. c4 {[%emt 0:00:00]} Nb6 {[%emt 0:00:02]} 5. exd6 {[%emt 0:00:00]} cxd6 {[%emt 0:00:47]} 6. Bd3 {[%emt 0:00:10]} g6 {[%emt 0:00:47]} 7. Nc3 {[%emt 0:00:10]} Bg7 {[%emt 0:00:06]} 8. Nge2 {[%emt 0:00:07]} O-O {[%emt 0:01:00]} 9. O-O {[%emt 0:00:28]} Nc6 {[%emt 0:01:27]} 10. Be3 {[%emt 0:00:16]} Nb4 {[%emt 0:00:59]} 11. b3 {[%emt 0:03:51]} Nxd3 {[%emt 0:00:08]} 12. Qxd3 {[%emt 0:00:07]} Nd7 {[%emt 0:00:56]} 13. Rac1 {[%emt 0:04:21]} Nf6 {[%emt 0:02:59]} 14. f3 {[%emt 0:00:39]} Bf5 {[%emt 0:05:35]} 15. Qd2 {[%emt 0:00:47]} Re8 {[%emt 0:00:38]} 16. Ng3 {[%emt 0:02:46]} Bc8 {[%emt 0:04:07]} 17. Rfd1 {[%emt 0:02:28]} a6 {[%emt 0:04:04]} 18. b4 {[%emt 0:08:08]} d5 {[%emt 0:02:49]} 19. c5 {[%emt 0:00:41]} h5 {[%emt 0:00:22]} 20. a4 {[%emt 0:14:59]} h4 {[%emt 0:01:37]} 21. Nge2 {[%emt 0:00:44]} Nh5 {[%emt 0:03:25]} 22. Nf4 {[%emt 0:01:03]} Nxf4 {[%emt 0:01:17]} 23. Bxf4 {[%emt 0:00:01]} Bf5 {[%emt 0:03:29]} 24. b5 {[%emt 0:04:03]} Qd7 {[%emt 0:03:47]} 25. Qb2 {[%emt 0:05:35]} f6 {[%emt 0:01:04]} 26. Qb3 {[%emt 0:03:20]} Be6 {[%emt 0:10:32]} 27. Na2 {[%emt 0:06:23]} axb5 {[%emt 0:02:55]} 28. axb5 {[%emt 0:00:12]} g5 {[%emt 0:00:45]} 29. Be3 {[%emt 0:01:11]} Rec8 {[%emt 0:02:22]} 30. Nb4 {[%emt 0:00:23]} Qxb5 {[%emt 0:00:46]} 31. Bd2 {[%emt 0:05:26]} Bf7 {[%emt 0:01:39]} 32. Qe3 {[%emt 0:07:22]} Qd7 {[%emt 0:03:17]} 33. Re1 {[%emt 0:01:50]} Re8 {[%emt 0:03:40]} 34. c6 {[%emt 0:01:21]} bxc6 {[%emt 0:00:14]} 35. Nxc6 {[%emt 0:00:02]} e6 {[%emt 0:01:01]} 36. Rc3 {[%emt 0:07:20]} Bf8 {[%emt 0:02:55]} 37. Rec1 {[%emt 0:00:58]} Bd6 {[%emt 0:00:18]} 38. Ne5 {[%emt 0:04:28]} Qe7 {[%emt 0:04:14]} 39. Nxf7 {[%emt 0:00:20]} Qxf7 {[%emt 0:00:17]} 40. Rc6 {[%emt 0:00:00]} Qd7 {[%emt 0:00:00]} 41. Qd3 {[%emt 0:03:30]} Kg7 {[%emt 0:03:02]} 42. Qb5 {[%emt 0:00:48]} Re7 {[%emt 0:04:52]} 43. Qb3 {[%emt 0:05:10]} Ra7 {[%emt 0:01:21]} 44. Qb6 {[%emt 0:02:35]} Rb7 {[%emt 0:03:17]} 45. Qa6 {[%emt 0:00:51]} Bb8 {[%emt 0:00:35]} 46. Re1 {[%emt 0:09:13]} Ba7 {[%emt 0:05:29]} 47. Bc3 {[%emt 0:03:08]} Kf7 {[%emt 0:06:59]} 48. Rd6 {[%emt 0:02:20]} Qc8 {[%emt 0:03:34]} 49. Rc6 {[%emt 0:05:13]} Qd7 {[%emt 0:05:19]} 50. Rd6 {[%emt 0:06:57]} Qb5 {[%emt 0:00:10]} 51. Qa2 {[%emt 0:03:02]} Qb3 {[%emt 0:01:12]} 52. Qd2 {[%emt 0:00:33]} Qa3 {[%emt 0:03:46]} 53. Rc6 {[%emt 0:02:25]} Qa4 {[%emt 0:01:15]} 54. Rc8 {[%emt 0:01:38]} Rbc7 {[%emt 0:01:32]} 55. Rxc7 {[%emt 0:01:26]} Rxc7 {[%emt 0:00:04]} 56. Qe3 {[%emt 0:01:55]} e5 {[%emt 0:03:01]} 57. Ra1 {[%emt 0:03:05]} Qb3 {[%emt 0:04:59]} 58. Rxa7 {[%emt 0:00:13]} Rxa7 {[%emt 0:00:09]} 59. dxe5 {[%emt 0:00:18]} Ra1+ {[%emt 0:00:16]} 60. Kf2 {[%emt 0:00:12]} Ra2+ {[%emt 0:00:26]} 61. Kf1 {[%emt 0:03:24]} Ra1+ {[%emt 0:04:32]} 62. Kf2 {[%emt 0:00:07]} Qc2+ {[%emt 0:00:18]} 63. Bd2 {[%emt 0:00:53]} Ra2 {[%emt 0:02:50]} 64. Ke2 {[%emt 0:00:31]} Qc4+ {[%emt 0:02:21]} 65. Qd3 {[%emt 0:00:28]} Qxd3+ {[%emt 0:01:04]} 66. Kxd3 {[%emt 0:00:02]} fxe5 {[%emt 0:02:56]} 67. Bxg5 {[%emt 0:00:09]} Rxg2 {[%emt 0:00:08]} 68. Bxh4 {[%emt 0:00:05]} Rxh2 {[%emt 0:00:09]} 69. Bg3 {[%emt 0:00:01]} Rh5 {[%emt 0:00:08]} 70. Ke3 {[%emt 0:00:27]} Ke6 {[%emt 0:00:12]} 71. Bf2 {[%emt 0:00:21]} Kf5 {[%emt 0:00:05]} 72. Bg3 {[%emt 0:00:06]} Rh3 {[%emt 0:00:20]} 73. Bf2 {[%emt 0:00:05]} e4 {[%emt 0:00:05]} 74. Kd4 {Ke5+} 0-1

[Event "46th GRE-chT Premier 2018"]
[Site "Rio Achaia"]
[Date "2018.07.12"]
[Round "4"]
[White "Laspas, Antonios"]
[Black "Rousos, Stamatios"]
[Result "1/2-1/2"]
[ECO "E01"]
[WhiteElo "1566"]
[BlackElo "1700"]
[Annotator "NA"]
[PlyCount "134"]
[EventDate "2018.07.10"]
[EventType "team-tourn"]
[EventCountry "GRE"]
[SourceTitle "playchess.com"]
[Source "ChessBase"]
[SourceQuality "1"]
[TimeControl "40/5400+30:1800+30"]

1. d4 {[%emt 0:03:32]} Nf6 {[%emt 0:00:00]} 2. c4 {[%emt 0:00:33]} e6 {[%emt 0:00:21]} 3. g3 {[%emt 0:00:21]} d5 {[%emt 0:00:56]} 4. Bg2 {[%emt 0:00:49]} Bb4+ {[%emt 0:00:43]} 5. Bd2 {[%emt 0:00:18]} Bd6 {[%emt 0:00:47]} 6. Nc3 {[%emt 0:00:58]} c6 {[%emt 0:00:39]} 7. Qc2 {[%emt 0:01:23]} O-O {[%emt 0:02:28]} 8. Nf3 {[%emt 0:02:25]} Nbd7 {[%emt 0:01:42]} 9. O-O {[%emt 0:01:06]} b6 {[%emt 0:01:13]} 10. Rfd1 {[%emt 0:00:20]} Bb7 {[%emt 0:01:37]} 11. e4 {[%emt 0:01:06]} dxe4 {[%emt 0:11:42]} 12. Nxe4 {[%emt 0:00:57]} Nxe4 {[%emt 0:00:37]} 13. Qxe4 {[%emt 0:00:08]} Nf6 {[%emt 0:00:20]} 14. Qe2 {[%emt 0:01:52]} Qe7 {[%emt 0:13:12]} 15. Ne5 {[%emt 0:07:00]} c5 {[%emt 0:00:50]} 16. Bxb7 {[%emt 0:04:27]} Qxb7 {[%emt 0:00:04]} 17. Bf4 {[%emt 0:00:14]} cxd4 {[%emt 0:03:19]} 18. Rxd4 {[%emt 0:01:34]} Bc5 {[%emt 0:00:18]} 19. Rd3 {[%emt 0:02:57]} Qe4 {[%emt 0:04:52]} 20. Qxe4 {[%emt 0:06:35]} Nxe4 {[%emt 0:00:05]} 21. Be3 {[%emt 0:00:16]} f6 {[%emt 0:04:35]} 22. Nd7 {[%emt 0:20:19]} Rfd8 {[%emt 0:00:07]} 23. Rad1 {[%emt 0:00:08]} Be7 {[%emt 0:02:01]} 24. b4 {[%emt 0:01:20]} Nd6 {[%emt 0:01:06]} 25. c5 {[%emt 0:00:14]} Rxd7 {[%emt 0:00:26]} 26. cxd6 {[%emt 0:00:09]} Bf8 {[%emt 0:00:22]} 27. a4 {[%emt 0:00:43]} Rad8 {[%emt 0:00:31]} 28. a5 {[%emt 0:00:12]} Rxd6 {[%emt 0:00:21]} 29. Rxd6 {[%emt 0:00:27]} Rxd6 {[%emt 0:00:16]} 30. Rxd6 {[%emt 0:00:07]} Bxd6 {[%emt 0:00:04]} 31. axb6 {[%emt 0:00:10]} axb6 {[%emt 0:00:04]} 32. Bxb6 {[%emt 0:02:03]} Bxb4 {[%emt 0:00:05]} 33. g4 {[%emt 0:00:26]} Kf7 {[%emt 0:00:08]} 34. Kg2 {[%emt 0:00:09]} f5 {[%emt 0:02:10]} 35. gxf5 {[%emt 0:00:26]} exf5 {[%emt 0:00:05]} 36. Kg3 {[%emt 0:00:19]} Bd6+ {[%emt 0:00:18]} 37. Kg2 {[%emt 0:00:22]} Kf6 {[%emt 0:00:37]} 38. h3 {[%emt 0:00:29]} Ke5 {[%emt 0:00:57]} 39. f3 {[%emt 0:00:30]} Kd5 {[%emt 0:01:00]} 40. Bf2 {[%emt 0:00:00]} Bc5 {[%emt 0:00:00]} 41. Bh4 {[%emt 0:02:33]} Be3 {[%emt 0:01:31]} 42. Be7 {[%emt 0:00:58]} Kd4 {[%emt 0:00:44]} 43. Bd6 {[%emt 0:05:08]} Kd3 {[%emt 0:00:20]} 44. Be7 {[%emt 0:08:23]} Ke2 {[%emt 0:00:23]} 45. Bd8 {[%emt 0:02:56]} g5 {[%emt 0:02:05]} 46. Bc7 {[%emt 0:01:03]} Bf2 {[%emt 0:03:31]} 47. Bd6 {[%emt 0:01:35]} f4 {[%emt 0:00:09]} 48. Be7 {[%emt 0:01:01]} Bh4 {[%emt 0:00:20]} 49. Bc5 {[%emt 0:00:37]} Be1 {[%emt 0:01:22]} 50. Be7 {[%emt 0:00:46]} h6 {[%emt 0:00:05]} 51. Bd8 {[%emt 0:00:39]} Bc3 {[%emt 0:00:55]} 52. Be7 {[%emt 0:00:25]} Bg7 {[%emt 0:00:40]} 53. Bd8 {[%emt 0:00:13]} Ke3 {[%emt 0:00:06]} 54. Be7 {[%emt 0:00:15]} Kd4 {[%emt 0:00:06]} 55. h4 {[%emt 0:01:54]} g4 {[%emt 0:01:15]} 56. fxg4 {[%emt 0:00:18]} Ke3 {[%emt 0:00:06]} 57. Kf1 {[%emt 0:00:05]} Kf3 {[%emt 0:00:10]} 58. g5 {[%emt 0:00:07]} h5 {[%emt 0:00:05]} 59. Bf6 {[%emt 0:00:23]} Bf8 {[%emt 0:00:26]} 60. g6 {[%emt 0:01:26]} Kg3 {[%emt 0:00:10]} 61. g7 {[%emt 0:00:27]} Bxg7 {[%emt 0:00:11]} 62. Bxg7 {[%emt 0:00:06]} Kxh4 {[%emt 0:00:03]} 63. Bd4 {[%emt 0:00:16]} Kg3 {[%emt 0:00:09]} 64. Kg1 {[%emt 0:00:08]} h4 {[%emt 0:00:08]} 65. Be5 {[%emt 0:00:12]} h3 {[%emt 0:00:06]} 66. Bxf4+ {[%emt 0:00:05]} Kxf4 {[%emt 0:00:05]} 67. Kh2 {[%emt 0:00:06]} Kg4 {[%emt 0:00:11]} 1/2-1/2

[Event "46th GRE-chT Premier 2018"]
[Site "Rio Achaia"]
[Date "2018.07.12"]
[Round "4"]
[White "Daskalaki, Sofia"]
[Black "Tsolakidou, Stavroula"]
[Result "0-1"]
[ECO "A46"]
[WhiteElo "1535"]
[BlackElo "2423"]
[Annotator "NA"]
[PlyCount "78"]
[EventDate "2018.07.10"]
[EventType "team-tourn"]
[EventCountry "GRE"]
[SourceTitle "playchess.com"]
[Source "ChessBase"]
[SourceQuality "1"]
[TimeControl "40/5400+30:1800+30"]

1. d4 {[%emt 0:00:00]} Nf6 {[%emt 0:00:00]} 2. Nf3 {[%emt 0:00:00]} e6 {[%emt 0:00:00]} 3. Bf4 {[%emt 0:00:00]} b6 {[%emt 0:00:04]} 4. e3 {[%emt 0:01:12]} Bb7 {[%emt 0:00:17]} 5. Bd3 d6 6. O-O {[%emt 0:04:48]} Nbd7 {[%emt 0:00:53]} 7. Nbd2 {[%emt 0:02:45]} g6 {[%emt 0:05:45]} 8. e4 {[%emt 0:04:40]} Bg7 {[%emt 0:13:22]} 9. Re1 {[%emt 0:08:14]} O-O {[%emt 0:05:58]} 10. e5 {[%emt 0:11:57]} Nh5 {[%emt 0:16:02]} 11. Bg5 {[%emt 0:01:54]} f6 {[%emt 0:00:13]} 12. exf6 {[%emt 0:01:22]} Bxf6 {[%emt 0:00:06]} 13. Bh6 {[%emt 0:03:04]} Re8 {[%emt 0:02:39]} 14. Ne4 {[%emt 0:06:00]} Ng7 {[%emt 0:12:30]} 15. Nxf6+ {[%emt 0:04:55]} Qxf6 {[%emt 0:02:51]} 16. Be4 {[%emt 0:03:47]} Bxe4 {[%emt 0:03:21]} 17. Rxe4 {[%emt 0:00:06]} Nf5 {[%emt 0:00:04]} 18. Bg5 {[%emt 0:01:40]} Qf7 {[%emt 0:01:48]} 19. c3 {[%emt 0:05:36]} h6 {[%emt 0:02:32]} 20. Bd2 {[%emt 0:00:46]} Nf6 {[%emt 0:00:05]} 21. Re2 {[%emt 0:02:02]} c5 {[%emt 0:05:30]} 22. dxc5 {[%emt 0:02:55]} bxc5 {[%emt 0:00:05]} 23. c4 {[%emt 0:04:10]} e5 {[%emt 0:00:37]} 24. b3 {[%emt 0:06:41]} Rf8 {[%emt 0:01:39]} 25. Bc3 {[%emt 0:02:22]} Rae8 {[%emt 0:01:52]} 26. Ne1 {[%emt 0:02:25]} Nd4 {[%emt 0:06:12]} 27. Bxd4 {[%emt 0:00:32]} cxd4 {[%emt 0:00:16]} 28. Nc2 {[%emt 0:03:38]} d5 {[%emt 0:01:37]} 29. cxd5 {[%emt 0:03:56]} Nxd5 {[%emt 0:00:05]} 30. Qd2 {[%emt 0:01:58]} Nf4 {[%emt 0:04:32]} 31. Re4 {[%emt 0:02:08]} Qf5 {[%emt 0:00:08]} 32. f3 {[%emt 0:00:55]} Rc8 {[%emt 0:02:48]} 33. Na3 {[%emt 0:02:36]} Rc3 {[%emt 0:03:57]} 34. Nc4 {[%emt 0:02:03]} Rxf3 {[%emt 0:05:03]} 35. Ree1 {[%emt 0:04:41]} Rd3 {[%emt 0:01:58]} 36. Qb2 {[%emt 0:01:21]} e4 {[%emt 0:01:54]} 37. Nd6 {[%emt 0:00:35]} Qg4 {[%emt 0:00:12]} 38. Nxe4 {[%emt 0:00:36]} Re3 {[%emt 0:00:55]} 39. Ng3 Nd3 0-1